[Event "Titled Tuesday Blitz March 14 Late 2023"]
[White "Davidson, Kevin"]
[Black "Costachi, Mihnea"]
[WhiteFideId "2056810"]
[BlackFideId "1217518"]
[WhiteElo "2151"]
[BlackElo "2456"]
[Result "1-0"]
[Round "01"]
[TimeControl "180+1"]
[Date "2023.03.14"]
[WhiteClock "0:00:06"]
[BlackClock "0:00:52"]

1. e4 {[%clk 0:03:00]}  e5 {[%clk 0:02:58]} 2. Nf3 {[%clk 0:03:00]}  Nc6 {[%clk 0:02:55]} 3. Bb5 {[%clk 0:03:00]}  a6 {[%clk 0:02:55]} 4. Ba4 {[%clk 0:02:59]}  d6 {[%clk 0:02:56]} 5. O-O {[%clk 0:02:59]}  Bd7 {[%clk 0:02:57]} 6. c3 {[%clk 0:02:58]}  g6 {[%clk 0:02:57]} 7. d4 {[%clk 0:02:58]}  Bg7 {[%clk 0:02:57]} 8. Be3 {[%clk 0:02:55]}  Nf6 {[%clk 0:02:55]} 9. Nbd2 {[%clk 0:02:54]}  O-O {[%clk 0:02:52]} 10. h3 {[%clk 0:02:51]}  Re8 {[%clk 0:02:51]} 11. dxe5 {[%clk 0:02:49]}  Nxe5 {[%clk 0:02:49]} 12. Nxe5 {[%clk 0:02:45]}  dxe5 {[%clk 0:02:47]} 13. Bxd7 {[%clk 0:02:43]}  Qxd7 {[%clk 0:02:47]} 14. Qb3 {[%clk 0:02:32]}  Qc6 {[%clk 0:02:43]} 15. f3 {[%clk 0:02:19]}  Rad8 {[%clk 0:02:43]} 16. Rad1 {[%clk 0:02:14]}  Rd3 {[%clk 0:02:38]} 17. Nc4 {[%clk 0:02:08]}  Rxd1 {[%clk 0:02:17]} 18. Rxd1 {[%clk 0:02:09]}  b6 {[%clk 0:02:13]} 19. Bf2 {[%clk 0:02:01]}  Nh5 {[%clk 0:02:10]} 20. Ne3 {[%clk 0:01:56]}  Nf4 {[%clk 0:02:02]} 21. Nd5 {[%clk 0:01:52]}  h5 {[%clk 0:01:57]} 22. Nxf4 {[%clk 0:01:29]}  exf4 {[%clk 0:01:56]} 23. Qd5 {[%clk 0:01:26]}  Qa4 {[%clk 0:01:52]} 24. Qd7 {[%clk 0:01:16]}  Qxd7 {[%clk 0:01:52]} 25. Rxd7 {[%clk 0:01:15]}  Be5 {[%clk 0:01:53]} 26. Bd4 {[%clk 0:01:10]}  Bd6 {[%clk 0:01:48]} 27. Kf2 {[%clk 0:01:03]}  b5 {[%clk 0:01:45]} 28. e5 {[%clk 0:00:56]}  Bxe5 {[%clk 0:01:43]} 29. Bxe5 {[%clk 0:00:56]}  Rxe5 {[%clk 0:01:44]} 30. Rxc7 {[%clk 0:00:56]}  Re6 {[%clk 0:01:43]} 31. b3 {[%clk 0:00:51]}  Re3 {[%clk 0:01:36]} 32. g3 {[%clk 0:00:42]}  g5 {[%clk 0:01:36]} 33. gxf4 {[%clk 0:00:39]}  gxf4 {[%clk 0:01:37]} 34. h4 {[%clk 0:00:37]}  Kg7 {[%clk 0:01:34]} 35. Rc5 {[%clk 0:00:35]}  f6 {[%clk 0:01:27]} 36. b4 {[%clk 0:00:32]}  Kg6 {[%clk 0:01:26]} 37. c4 {[%clk 0:00:27]}  Ra3 {[%clk 0:01:13]} 38. cxb5 {[%clk 0:00:26]}  Rxa2+ {[%clk 0:01:14]} 39. Kg1 {[%clk 0:00:25]}  axb5 {[%clk 0:01:15]} 40. Rxb5 {[%clk 0:00:25]}  Rb2 {[%clk 0:01:15]} 41. Rb8 {[%clk 0:00:15]}  Kf5 {[%clk 0:01:16]} 42. b5 {[%clk 0:00:14]}  Ke6 {[%clk 0:01:03]} 43. b6 {[%clk 0:00:12]}  Kd7 {[%clk 0:01:04]} 44. Kf1 {[%clk 0:00:10]}  Kc6 {[%clk 0:01:00]} 45. Rf8 {[%clk 0:00:08]}  Kxb6 {[%clk 0:00:54]} 46. Rb8+ {[%clk 0:00:07]}  Kc6 {[%clk 0:00:52]} 47. Rxb2 {[%clk 0:00:08]}  Kd5 {[%clk 0:00:52]} 48. Re2 {[%clk 0:00:08]}  f5 {[%clk 0:00:52]} 49. Ke1 {[%clk 0:00:06]} 1-0


[Site "https://www.chess.com"]

[Event "Titled Tuesday Blitz March 14 Late 2023"]
[White "Deviprasath, Sharvesh"]
[Black "Kramnik, Vladimir"]
[WhiteFideId "30938228"]
[BlackFideId "4101588"]
[WhiteElo "2168"]
[BlackElo "2712"]
[Result "1/2-1/2"]
[Round "01"]
[TimeControl "180+1"]
[Date "2023.03.14"]
[WhiteClock "0:00:09"]
[BlackClock "0:00:59"]

1. Nf3 {[%clk 0:02:58]}  Nf6 {[%clk 0:02:58]} 2. c4 {[%clk 0:02:48]}  e6 {[%clk 0:02:57]} 3. Nc3 {[%clk 0:02:48]}  c5 {[%clk 0:02:55]} 4. e3 {[%clk 0:02:47]}  Nc6 {[%clk 0:02:53]} 5. d4 {[%clk 0:02:46]}  d5 {[%clk 0:02:54]} 6. cxd5 {[%clk 0:02:46]}  exd5 {[%clk 0:02:53]} 7. Bb5 {[%clk 0:02:46]}  cxd4 {[%clk 0:02:53]} 8. Nxd4 {[%clk 0:02:46]}  Bd7 {[%clk 0:02:54]} 9. O-O {[%clk 0:02:46]}  Bd6 {[%clk 0:02:53]} 10. Be2 {[%clk 0:02:44]}  O-O {[%clk 0:02:52]} 11. Bf3 {[%clk 0:02:44]}  Be6 {[%clk 0:02:46]} 12. Nxc6 {[%clk 0:02:43]}  bxc6 {[%clk 0:02:45]} 13. b3 {[%clk 0:02:43]}  Qe7 {[%clk 0:02:37]} 14. Bb2 {[%clk 0:02:41]}  Rfd8 {[%clk 0:02:37]} 15. Ne2 {[%clk 0:02:33]}  c5 {[%clk 0:02:33]} 16. Rc1 {[%clk 0:02:29]}  Rac8 {[%clk 0:02:31]} 17. Qc2 {[%clk 0:02:22]}  h5 {[%clk 0:02:27]} 18. Ng3 {[%clk 0:01:47]}  g6 {[%clk 0:02:23]} 19. Qc3 {[%clk 0:01:24]}  d4 {[%clk 0:02:22]} 20. exd4 {[%clk 0:01:25]}  Bxg3 {[%clk 0:01:55]} 21. d5 {[%clk 0:00:39]}  Bh4 {[%clk 0:01:37]} 22. dxe6 {[%clk 0:00:34]}  Qxe6 {[%clk 0:01:37]} 23. Rfe1 {[%clk 0:00:28]}  Qf5 {[%clk 0:01:32]} 24. g3 {[%clk 0:00:23]}  Rd3 {[%clk 0:01:26]} 25. Qe5 {[%clk 0:00:14]}  Qxf3 {[%clk 0:01:10]} 26. gxh4 {[%clk 0:00:13]}  Rd2 {[%clk 0:01:10]} 27. Qxf6 {[%clk 0:00:10]}  Qg4+ {[%clk 0:00:58]} 28. Kh1 {[%clk 0:00:09]}  Rxb2 {[%clk 0:00:58]} 29. Qxb2 {[%clk 0:00:08]}  Qf3+ {[%clk 0:00:59]} 30. Kg1 {[%clk 0:00:08]}  Qg4+ {[%clk 0:00:59]} 31. Kh1 {[%clk 0:00:08]}  Qf3+ {[%clk 0:00:59]} 32. Kg1 {[%clk 0:00:09]}  Qg4+ {[%clk 0:00:59]} 33. Kh1 {[%clk 0:00:09]} 1/2-1/2


[Site "https://www.chess.com"]

[Event "Titled Tuesday Blitz March 14 Late 2023"]
[White "Di Nicolantonio, Lucas"]
[Black "Biriukov, Ilja"]
[WhiteFideId "680460"]
[BlackFideId "4113373"]
[WhiteElo "2358"]
[BlackElo "2426"]
[Result "0-1"]
[Round "01"]
[TimeControl "180+1"]
[Date "2023.03.14"]
[WhiteClock "0:00:08"]
[BlackClock "0:00:21"]

1. Nf3 {[%clk 0:02:59]}  Nf6 {[%clk 0:02:59]} 2. c4 {[%clk 0:02:58]}  g6 {[%clk 0:02:57]} 3. Nc3 {[%clk 0:02:58]}  Bg7 {[%clk 0:02:57]} 4. g3 {[%clk 0:02:54]}  b6 {[%clk 0:02:55]} 5. Bg2 {[%clk 0:02:50]}  Bb7 {[%clk 0:02:56]} 6. O-O {[%clk 0:02:51]}  c5 {[%clk 0:02:55]} 7. d4 {[%clk 0:02:49]}  cxd4 {[%clk 0:02:53]} 8. Qxd4 {[%clk 0:02:50]}  O-O {[%clk 0:02:51]} 9. Rd1 {[%clk 0:02:49]}  d6 {[%clk 0:02:50]} 10. Qh4 {[%clk 0:02:41]}  Nbd7 {[%clk 0:02:42]} 11. Bh6 {[%clk 0:02:37]}  Qc8 {[%clk 0:02:30]} 12. b3 {[%clk 0:02:34]}  a6 {[%clk 0:02:27]} 13. Rac1 {[%clk 0:02:34]}  Qc7 {[%clk 0:02:16]} 14. Nd5 {[%clk 0:02:27]}  Nxd5 {[%clk 0:02:06]} 15. cxd5 {[%clk 0:02:26]}  Qd8 {[%clk 0:02:05]} 16. Ng5 {[%clk 0:02:22]}  Nf6 {[%clk 0:02:04]} 17. e4 {[%clk 0:02:16]}  Rc8 {[%clk 0:01:50]} 18. Bh3 {[%clk 0:02:16]}  Rxc1 {[%clk 0:01:47]} 19. Rxc1 {[%clk 0:02:17]}  b5 {[%clk 0:01:46]} 20. Be6 {[%clk 0:02:13]}  Qa5 {[%clk 0:01:20]} 21. e5 {[%clk 0:00:35]}  dxe5 {[%clk 0:01:15]} 22. b4 {[%clk 0:00:18]}  Qb6 {[%clk 0:01:12]} 23. Nxf7 {[%clk 0:00:15]}  Rxf7 {[%clk 0:01:08]} 24. Be3 {[%clk 0:00:16]}  Qd8 {[%clk 0:01:02]} 25. Qg5 {[%clk 0:00:14]}  Nxd5 {[%clk 0:00:49]} 26. Rd1 {[%clk 0:00:12]}  Bf6 {[%clk 0:00:45]} 27. Qg4 {[%clk 0:00:10]}  Kg7 {[%clk 0:00:39]} 28. Bxf7 {[%clk 0:00:09]}  Kxf7 {[%clk 0:00:38]} 29. Bc5 {[%clk 0:00:09]}  e6 {[%clk 0:00:34]} 30. h4 {[%clk 0:00:09]}  h5 {[%clk 0:00:33]} 31. Qe2 {[%clk 0:00:08]}  Nc3 {[%clk 0:00:23]} 32. Rxd8 {[%clk 0:00:06]}  Nxe2+ {[%clk 0:00:22]} 33. Kf1 {[%clk 0:00:07]}  Bxd8 {[%clk 0:00:21]} 34. Kxe2 {[%clk 0:00:08]}  Be7 {[%clk 0:00:21]} 35. Bb6 {[%clk 0:00:07]}  Bxb4 {[%clk 0:00:20]} 36. Bc7 {[%clk 0:00:08]}  a5 {[%clk 0:00:20]} 37. Bxe5 {[%clk 0:00:08]}  a4 {[%clk 0:00:21]} 38. Bb2 {[%clk 0:00:07]}  Be7 {[%clk 0:00:21]} 39. f4 {[%clk 0:00:07]}  Bd5 {[%clk 0:00:21]} 40. Kd3 {[%clk 0:00:07]}  b4 {[%clk 0:00:22]} 41. a3 {[%clk 0:00:07]}  bxa3 {[%clk 0:00:21]} 42. Ba1 {[%clk 0:00:08]} 0-1


[Site "https://www.chess.com"]

[Event "Titled Tuesday Blitz March 14 Late 2023"]
[White "Diaz Perez, Michel Alejandro"]
[Black "Abrosimov, Vladimir"]
[WhiteFideId "3517179"]
[BlackFideId "4166892"]
[WhiteElo "2333"]
[BlackElo "2336"]
[Result "1-0"]
[Round "01"]
[TimeControl "180+1"]
[Date "2023.03.14"]
[WhiteClock "0:02:11"]
[BlackClock "0:01:22"]

1. Nf3 {[%clk 0:02:57]}  d5 {[%clk 0:02:59]} 2. c4 {[%clk 0:02:58]}  c6 {[%clk 0:02:58]} 3. e3 {[%clk 0:02:58]}  Bf5 {[%clk 0:02:57]} 4. Nc3 {[%clk 0:02:59]}  h6 {[%clk 0:02:57]} 5. cxd5 {[%clk 0:02:58]}  cxd5 {[%clk 0:02:57]} 6. Qb3 {[%clk 0:02:59]}  Nf6 {[%clk 0:02:23]} 7. Qxb7 {[%clk 0:02:56]}  Nbd7 {[%clk 0:02:23]} 8. Nxd5 {[%clk 0:02:51]}  Nxd5 {[%clk 0:02:15]} 9. Qxd5 {[%clk 0:02:52]}  Be6 {[%clk 0:02:14]} 10. Qe4 {[%clk 0:02:50]}  Nc5 {[%clk 0:02:10]} 11. Bb5+ {[%clk 0:02:44]}  Bd7 {[%clk 0:02:05]} 12. Bxd7+ {[%clk 0:02:42]}  Nxd7 {[%clk 0:02:06]} 13. b3 {[%clk 0:02:29]}  e6 {[%clk 0:02:02]} 14. Bb2 {[%clk 0:02:29]}  Rc8 {[%clk 0:01:59]} 15. O-O {[%clk 0:02:27]}  Nf6 {[%clk 0:01:57]} 16. Qa4+ {[%clk 0:02:26]}  Nd7 {[%clk 0:01:52]} 17. Rfc1 {[%clk 0:02:20]}  Rg8 {[%clk 0:01:44]} 18. Ne5 {[%clk 0:02:16]}  Bd6 {[%clk 0:01:35]} 19. Nxd7 {[%clk 0:02:14]}  Rxc1+ {[%clk 0:01:30]} 20. Rxc1 {[%clk 0:02:14]}  Qxd7 {[%clk 0:01:31]} 21. Rc8+ {[%clk 0:02:13]}  Ke7 {[%clk 0:01:27]} 22. Qxd7+ {[%clk 0:02:13]}  Kxd7 {[%clk 0:01:27]} 23. Rxg8 {[%clk 0:02:14]}  g6 {[%clk 0:01:22]} 24. g4 {[%clk 0:02:11]} 1-0


[Site "https://www.chess.com"]

[Event "Titled Tuesday Blitz March 14 Late 2023"]
[White "Drygalov, Andrey"]
[Black "Urquhart, Ed"]
[WhiteFideId "24171735"]
[BlackFideId "2603748"]
[WhiteElo "2471"]
[BlackElo "2184"]
[Result "1-0"]
[Round "01"]
[TimeControl "180+1"]
[Date "2023.03.14"]
[WhiteClock "0:00:28"]
[BlackClock "0:00:02"]

1. e4 {[%clk 0:02:52]}  c5 {[%clk 0:02:59]} 2. Nf3 {[%clk 0:02:52]}  e6 {[%clk 0:02:57]} 3. d4 {[%clk 0:02:52]}  cxd4 {[%clk 0:02:58]} 4. Nxd4 {[%clk 0:02:52]}  Nc6 {[%clk 0:02:58]} 5. Nc3 {[%clk 0:02:53]}  Qc7 {[%clk 0:02:58]} 6. Be2 {[%clk 0:02:53]}  a6 {[%clk 0:02:59]} 7. Nxc6 {[%clk 0:02:52]}  dxc6 {[%clk 0:02:58]} 8. Qd3 {[%clk 0:02:51]}  e5 {[%clk 0:02:59]} 9. Qg3 {[%clk 0:02:51]}  Nf6 {[%clk 0:02:59]} 10. O-O {[%clk 0:02:50]}  Be6 {[%clk 0:02:57]} 11. Kh1 {[%clk 0:02:43]}  Be7 {[%clk 0:02:41]} 12. f4 {[%clk 0:02:37]}  exf4 {[%clk 0:02:36]} 13. Bxf4 {[%clk 0:02:36]}  Qb6 {[%clk 0:02:33]} 14. Be5 {[%clk 0:02:36]}  Nd7 {[%clk 0:02:06]} 15. Qxg7 {[%clk 0:02:02]}  O-O-O {[%clk 0:02:05]} 16. Bg3 {[%clk 0:02:03]}  Rhg8 {[%clk 0:02:00]} 17. Qh6 {[%clk 0:01:59]}  Rg6 {[%clk 0:01:59]} 18. Qf4 {[%clk 0:01:59]}  Bg5 {[%clk 0:01:37]} 19. Qf3 {[%clk 0:01:54]}  h5 {[%clk 0:01:34]} 20. Na4 {[%clk 0:01:37]}  Qd4 {[%clk 0:01:28]} 21. b3 {[%clk 0:01:36]}  h4 {[%clk 0:01:11]} 22. Rad1 {[%clk 0:01:32]}  Qh8 {[%clk 0:01:05]} 23. Bf2 {[%clk 0:01:21]}  h3 {[%clk 0:01:05]} 24. g3 {[%clk 0:01:17]}  Be7 {[%clk 0:00:33]} 25. Qe3 {[%clk 0:01:12]}  Rf6 {[%clk 0:00:17]} 26. Qa7 {[%clk 0:00:55]}  Qh7 {[%clk 0:00:15]} 27. Qe3 {[%clk 0:00:36]}  Qg6 {[%clk 0:00:12]} 28. Kg1 {[%clk 0:00:36]}  Rg8 {[%clk 0:00:07]} 29. Rd4 {[%clk 0:00:32]}  Nc5 {[%clk 0:00:05]} 30. Nb6+ {[%clk 0:00:30]}  Kb8 {[%clk 0:00:04]} 31. Rfd1 {[%clk 0:00:29]}  Qg5 {[%clk 0:00:01]} 32. Qxg5 {[%clk 0:00:28]}  Rxg5 {[%clk 0:00:02]} 33. Nc4 {[%clk 0:00:28]} 1-0


[Site "https://www.chess.com"]

[Event "Titled Tuesday Blitz March 14 Late 2023"]
[White "Fernandez Guillen, Ernesto J."]
[Black "Mazurkiewicz, Michal"]
[WhiteFideId "3512428"]
[BlackFideId "1124943"]
[WhiteElo "2423"]
[BlackElo "2054"]
[Result "1/2-1/2"]
[Round "01"]
[TimeControl "180+1"]
[Date "2023.03.14"]
[WhiteClock "0:00:29"]
[BlackClock "0:00:17"]

1. e4 {[%clk 0:02:57]}  d6 {[%clk 0:02:59]} 2. d4 {[%clk 0:02:55]}  Nf6 {[%clk 0:03:00]} 3. Nc3 {[%clk 0:02:56]}  c6 {[%clk 0:03:00]} 4. f3 {[%clk 0:02:55]}  e5 {[%clk 0:02:59]} 5. dxe5 {[%clk 0:02:55]}  dxe5 {[%clk 0:03:00]} 6. Qxd8+ {[%clk 0:02:55]}  Kxd8 {[%clk 0:03:01]} 7. Bg5 {[%clk 0:02:56]}  Be6 {[%clk 0:03:01]} 8. O-O-O+ {[%clk 0:02:56]}  Kc7 {[%clk 0:03:01]} 9. f4 {[%clk 0:02:49]}  Bb4 {[%clk 0:02:46]} 10. Bxf6 {[%clk 0:02:39]}  gxf6 {[%clk 0:02:43]} 11. f5 {[%clk 0:02:39]}  Bxc3 {[%clk 0:02:04]} 12. fxe6 {[%clk 0:02:09]}  Bd4 {[%clk 0:02:04]} 13. exf7 {[%clk 0:02:09]}  Rf8 {[%clk 0:02:03]} 14. Bc4 {[%clk 0:02:08]}  Nd7 {[%clk 0:01:51]} 15. Nf3 {[%clk 0:02:08]}  Be3+ {[%clk 0:01:51]} 16. Kb1 {[%clk 0:02:08]}  b5 {[%clk 0:01:50]} 17. Bb3 {[%clk 0:02:02]}  Nc5 {[%clk 0:01:48]} 18. Nh4 {[%clk 0:01:50]}  Nxe4 {[%clk 0:01:24]} 19. Nf5 {[%clk 0:01:23]}  Nd2+ {[%clk 0:00:40]} 20. Rxd2 {[%clk 0:01:23]}  Bxd2 {[%clk 0:00:39]} 21. Ng7 {[%clk 0:01:24]}  e4 {[%clk 0:00:10]} 22. Ne6+ {[%clk 0:01:07]}  Kd6 {[%clk 0:00:11]} 23. Nxf8 {[%clk 0:01:08]}  Rxf8 {[%clk 0:00:11]} 24. c3 {[%clk 0:01:09]}  e3 {[%clk 0:00:11]} 25. Kc2 {[%clk 0:01:09]}  c5 {[%clk 0:00:11]} 26. a4 {[%clk 0:01:09]}  c4 {[%clk 0:00:11]} 27. Ba2 {[%clk 0:01:09]}  a6 {[%clk 0:00:11]} 28. b3 {[%clk 0:01:08]}  Rxf7 {[%clk 0:00:10]} 29. bxc4 {[%clk 0:01:05]}  bxc4 {[%clk 0:00:10]} 30. Bxc4 {[%clk 0:01:06]}  Rc7 {[%clk 0:00:10]} 31. Kd3 {[%clk 0:01:06]}  Ke5 {[%clk 0:00:08]} 32. Bxa6 {[%clk 0:00:57]}  Rxc3+ {[%clk 0:00:07]} 33. Ke2 {[%clk 0:00:58]}  Ra3 {[%clk 0:00:07]} 34. Bb5 {[%clk 0:00:57]}  f5 {[%clk 0:00:07]} 35. Kf3 {[%clk 0:00:53]}  f4 {[%clk 0:00:06]} 36. Rb1 {[%clk 0:00:52]}  Bc3 {[%clk 0:00:06]} 37. Be8 {[%clk 0:00:49]}  Ra2 {[%clk 0:00:06]} 38. Bb5 {[%clk 0:00:36]}  Rf2+ {[%clk 0:00:07]} 39. Kg4 {[%clk 0:00:36]}  Rxg2+ {[%clk 0:00:08]} 40. Kh3 {[%clk 0:00:37]}  Rb2 {[%clk 0:00:07]} 41. Rxb2 {[%clk 0:00:35]}  Bxb2 {[%clk 0:00:08]} 42. Kg2 {[%clk 0:00:34]}  Bc3 {[%clk 0:00:07]} 43. Kf3 {[%clk 0:00:33]}  Kf5 {[%clk 0:00:07]} 44. h3 {[%clk 0:00:33]}  Ke5 {[%clk 0:00:08]} 45. Bd3 {[%clk 0:00:33]}  h6 {[%clk 0:00:09]} 46. Bb5 {[%clk 0:00:33]}  Bb4 {[%clk 0:00:10]} 47. Be2 {[%clk 0:00:33]}  Bd6 {[%clk 0:00:10]} 48. a5 {[%clk 0:00:34]}  Bb8 {[%clk 0:00:10]} 49. a6 {[%clk 0:00:35]}  Kd4 {[%clk 0:00:11]} 50. Bb5 {[%clk 0:00:35]}  Kc5 {[%clk 0:00:11]} 51. Be2 {[%clk 0:00:35]}  Kd4 {[%clk 0:00:12]} 52. Bf1 {[%clk 0:00:36]}  Ke5 {[%clk 0:00:12]} 53. Be2 {[%clk 0:00:37]}  Ba7 {[%clk 0:00:12]} 54. Bb5 {[%clk 0:00:38]}  Bb6 {[%clk 0:00:13]} 55. Be2 {[%clk 0:00:39]}  Ba7 {[%clk 0:00:14]} 56. Bf1 {[%clk 0:00:40]}  Kd4 {[%clk 0:00:14]} 57. Bb5 {[%clk 0:00:39]}  Ke5 {[%clk 0:00:14]} 58. Ke2 {[%clk 0:00:39]}  Ke4 {[%clk 0:00:14]} 59. Bc6+ {[%clk 0:00:39]}  Ke5 {[%clk 0:00:14]} 60. Bf3 {[%clk 0:00:40]}  Kd4 {[%clk 0:00:14]} 61. Bh1 {[%clk 0:00:40]}  Ke5 {[%clk 0:00:15]} 62. Kd3 {[%clk 0:00:40]}  Kf5 {[%clk 0:00:15]} 63. Bf3 {[%clk 0:00:38]}  Kg5 {[%clk 0:00:16]} 64. Ke4 {[%clk 0:00:31]}  Kh4 {[%clk 0:00:16]} 65. Kxf4 {[%clk 0:00:32]}  Kxh3 {[%clk 0:00:16]} 66. Bd1 {[%clk 0:00:26]}  Kg2 {[%clk 0:00:16]} 67. Kg4 {[%clk 0:00:25]}  Kf2 {[%clk 0:00:15]} 68. Kh5 {[%clk 0:00:26]}  Ke1 {[%clk 0:00:15]} 69. Bg4 {[%clk 0:00:26]}  e2 {[%clk 0:00:14]} 70. Bxe2 {[%clk 0:00:26]}  Kxe2 {[%clk 0:00:15]} 71. Kxh6 {[%clk 0:00:27]}  Kd3 {[%clk 0:00:16]} 72. Kg6 {[%clk 0:00:27]}  Kc4 {[%clk 0:00:17]} 73. Kf7 {[%clk 0:00:28]}  Kb5 {[%clk 0:00:17]} 74. Ke6 {[%clk 0:00:29]}  Kxa6 {[%clk 0:00:17]} 1/2-1/2


[Site "https://www.chess.com"]

[Event "Titled Tuesday Blitz March 14 Late 2023"]
[White "Fiorito, Francisco"]
[Black "Bogaudinov, Rushan"]
[WhiteFideId "180165"]
[BlackFideId "4129288"]
[WhiteElo "2341"]
[BlackElo "1949"]
[Result "1-0"]
[Round "01"]
[TimeControl "180+1"]
[Date "2023.03.14"]
[WhiteClock "0:00:41"]
[BlackClock "0:00:13"]

1. d4 {[%clk 0:02:57]}  d5 {[%clk 0:02:59]} 2. Nc3 {[%clk 0:02:54]}  Nf6 {[%clk 0:02:56]} 3. Bf4 {[%clk 0:02:53]}  a6 {[%clk 0:02:54]} 4. e3 {[%clk 0:02:52]}  e6 {[%clk 0:02:53]} 5. g4 {[%clk 0:02:51]}  Bb4 {[%clk 0:02:50]} 6. Ne2 {[%clk 0:02:51]}  c5 {[%clk 0:02:47]} 7. a3 {[%clk 0:02:47]}  Bxc3+ {[%clk 0:02:37]} 8. Nxc3 {[%clk 0:02:48]}  cxd4 {[%clk 0:02:33]} 9. exd4 {[%clk 0:02:47]}  Nc6 {[%clk 0:02:31]} 10. g5 {[%clk 0:02:38]}  Ne4 {[%clk 0:02:21]} 11. Nxe4 {[%clk 0:02:37]}  dxe4 {[%clk 0:02:22]} 12. c3 {[%clk 0:02:35]}  O-O {[%clk 0:02:06]} 13. Bg2 {[%clk 0:02:33]}  e5 {[%clk 0:02:05]} 14. dxe5 {[%clk 0:02:31]}  Bf5 {[%clk 0:02:02]} 15. Qxd8 {[%clk 0:02:19]}  Raxd8 {[%clk 0:02:01]} 16. O-O {[%clk 0:02:19]}  Rfe8 {[%clk 0:01:51]} 17. Rad1 {[%clk 0:02:18]}  Na5 {[%clk 0:01:36]} 18. Rd4 {[%clk 0:02:02]}  b5 {[%clk 0:01:25]} 19. Rfd1 {[%clk 0:01:55]}  Rxd4 {[%clk 0:01:22]} 20. Rxd4 {[%clk 0:01:55]}  Nc4 {[%clk 0:01:20]} 21. b3 {[%clk 0:01:46]}  Nxa3 {[%clk 0:01:19]} 22. Bxe4 {[%clk 0:01:45]}  Be6 {[%clk 0:01:15]} 23. b4 {[%clk 0:01:45]}  Nc4 {[%clk 0:01:14]} 24. Bc6 {[%clk 0:01:44]}  Rc8 {[%clk 0:01:10]} 25. Bb7 {[%clk 0:01:44]}  Rb8 {[%clk 0:01:04]} 26. Bxa6 {[%clk 0:01:44]}  g6 {[%clk 0:01:04]} 27. h4 {[%clk 0:01:19]}  Kg7 {[%clk 0:01:03]} 28. Rd1 {[%clk 0:01:06]}  Rb6 {[%clk 0:00:55]} 29. Ra1 {[%clk 0:01:05]}  Bd5 {[%clk 0:00:54]} 30. Kh2 {[%clk 0:00:59]}  Kf8 {[%clk 0:00:53]} 31. Bc8 {[%clk 0:00:57]}  Rb8 {[%clk 0:00:46]} 32. Bg4 {[%clk 0:00:55]}  Nb2 {[%clk 0:00:41]} 33. e6 {[%clk 0:00:53]}  Re8 {[%clk 0:00:38]} 34. Bd6+ {[%clk 0:00:53]}  Kg7 {[%clk 0:00:38]} 35. e7 {[%clk 0:00:51]}  Nc4 {[%clk 0:00:31]} 36. Bc5 {[%clk 0:00:51]}  Ne5 {[%clk 0:00:30]} 37. Kg3 {[%clk 0:00:50]}  f5 {[%clk 0:00:29]} 38. gxf6+ {[%clk 0:00:48]}  Kxf6 {[%clk 0:00:29]} 39. Ra6+ {[%clk 0:00:49]}  Kf7 {[%clk 0:00:27]} 40. Bd6 {[%clk 0:00:48]}  Nxg4 {[%clk 0:00:27]} 41. Kxg4 {[%clk 0:00:49]}  h5+ {[%clk 0:00:25]} 42. Kf4 {[%clk 0:00:47]}  Bc4 {[%clk 0:00:19]} 43. Bc5 {[%clk 0:00:47]}  Rc8 {[%clk 0:00:18]} 44. Ke5 {[%clk 0:00:46]}  Re8 {[%clk 0:00:14]} 45. Rf6+ {[%clk 0:00:47]}  Kg7 {[%clk 0:00:15]} 46. Rf8 {[%clk 0:00:47]}  Bf7 {[%clk 0:00:15]} 47. Kd6 {[%clk 0:00:47]}  g5 {[%clk 0:00:15]} 48. Kd7 {[%clk 0:00:41]}  Rxf8 {[%clk 0:00:13]} 49. exf8=Q+ {[%clk 0:00:41]} 1-0


[Site "https://www.chess.com"]